bitfinex/quotes_SOLUSD_20220113
["timestamp","ask_amount","ask_price","bid_price","bid_amount"]
[1642090946376,0.26,154.4,154.34,9.7171]
[1642090946577,23.83835475,154.42,154.34,9.7171]
[1642090946982,2.591,154.41,154.33,9.7177]
[1642090947182,2.591,154.41,154.28,32.3946]
[1642090947383,25.4608,154.41,154.25,9.7252]
[1642090947587,7.82,154.4,154.24,73.5787]
[1642090947784,2.592,154.39,154.24,73.5787]
[1642090947983,9.102,154.39,154.24,73.5787]
[1642090948483,7.82,154.38,154.24,73.5787]
[1642090948687,2.592,154.37,154.24,73.5787]
[1642090948885,9.7201,154.35,154.27,9.7215]
[1642090949086,10.2301,154.35,154.27,0.25]
[1642090949287,2.592,154.37,154.27,0.51]
[1642090949486,1.82969713,154.4,154.28,64.88]
[1642090949686,1.82969713,154.4,154.29,7.82]
[1642090950092,1.82969713,154.4,154.29,73.21]
[1642090950288,9.7175,154.39,154.29,82.93]
[1642090950490,15.9675,154.39,154.29,88.93]
[1642090950691,15.9675,154.39,154.29,82.93]
[1642090950889,16.2275,154.39,154.29,82.93]
[1642090951290,16.2275,154.39,154.29,82.68]
[1642090951790,10.2275,154.39,154.29,88.68]
[1642090951989,2.592,154.41,154.29,90.32999521]
[1642090952191,76.0846,154.42,154.29,90.32999521]
[1642090952991,76.0846,154.42,154.29,90.57999521]
[1642090953192,9.7152,154.43,154.29,90.32999521]
[1642090953393,12.3062,154.43,154.29,90.32999521]
[1642090953592,18.8162,154.43,154.29,90.32999521]
[1642090954195,12.5562,154.43,154.29,90.06999521]
[1642090954592,2.841,154.43,154.29,90.31999521]
[1642090954992,2.841,154.43,154.29,88.67]
[1642090955198,8.841,154.43,154.29,82.67]
[1642090955614,9.101,154.43,154.29,84.31999521]
[1642090956220,18.8162,154.43,154.29,84.31999521]
[1642090956421,18.8162,154.43,154.29,90.57999521]
[1642090956720,20.64589713,154.43,154.29,90.57999521]
[1642090958227,1.82969713,154.42,154.29,88.93]
[1642090958527,2.591,154.41,154.29,98.3428]
[1642090958927,9.101,154.41,154.29,88.42]
[1642090959129,64.88,154.4,154.29,17.54]
[1642090959327,64.88,154.38,154.27,9.721]
[1642090959529,9.7215,154.33,154.23,24.8532]
[1642090959728,9.7215,154.33,154.21,9.8613]
[1642090959930,16.2315,154.33,154.21,9.8613]
[1642090960128,10.2315,154.33,154.21,9.8613]
[1642090960633,10.2315,154.33,154.21,15.8613]
[1642090960834,10.2315,154.33,154.21,25.5824]
[1642090961034,16.2315,154.33,154.21,25.5824]
[1642090961233,6.51,154.33,154.22,64.88]
[1642090961433,6.25,154.33,154.22,64.88]
[1642090961634,6.25,154.33,154.22,72.52999521]
[1642090961836,0.25,154.33,154.22,72.52999521]
[1642090962034,0.25,154.33,154.27,9.7199]
[1642090962035,6.0,154.33,154.27,9.7199]
[1642090962234,1.82969713,154.36,154.27,9.9699]
[1642090962435,1.82969713,154.36,154.27,16.2299]
[1642090963134,9.7179,154.38,154.27,16.2299]
[1642090963335,12.3089,154.38,154.27,16.2299]
[1642090963537,18.5589,154.38,154.27,81.1099]
[1642090963736,18.5589,154.38,154.27,15.9699]
[1642090963935,18.5589,154.38,154.27,15.7199]
[1642090964836,18.5589,154.38,154.27,9.7199]
[1642090965137,18.8189,154.38,154.27,9.7199]
[1642090965338,9.7213,154.33,154.2,56.2604]
[1642090965540,10.2313,154.33,154.21,40.706]
[1642090965736,14.9606582,154.32,154.21,15.8613]
[1642090965937,15.2206582,154.32,154.18,72.7502]
[1642090966137,2.593,154.31,154.18,72.7502]
[1642090966439,35.0097,154.31,154.18,72.7502]
[1642090966637,9.725,154.27,154.19,9.7258]
[1642090967040,10.235,154.27,154.19,15.7258]
[1642090967739,10.235,154.27,154.19,15.9758]
[1642090968339,2.593,154.31,154.19,15.9758]
[1642090968538,0.25,154.31,154.19,17.88579521]
[1642090969237,14.9606582,154.32,154.19,17.88579521]
[1642090969641,14.9606582,154.32,154.2,64.88]
[1642090969838,14.9606582,154.32,154.21,9.7212]
[1642090970039,14.9606582,154.32,154.21,16.2312]
[1642090970439,14.9606582,154.32,154.21,17.88119521]
[1642090970642,15.2106582,154.32,154.21,17.88119521]
[1642090970839,24.9323582,154.32,154.21,16.2312]
[1642090971040,21.2106582,154.32,154.21,9.7212]
[1642090971238,2.592,154.31,154.21,9.7212]
[1642090971639,8.842,154.31,154.21,9.7212]
[1642090971839,9.726,154.26,154.2,9.7256]
[1642090972039,9.726,154.26,154.18,6.0]
[1642090972040,13.91813679,154.25,154.18,6.0]
[1642090972238,16.51113679,154.25,154.15,6.0]
[1642090972438,17.02113679,154.25,154.13,137.53471276]
[1642090972639,23.47544264,154.2,154.13,131.53471276]
[1642090972844,23.47544264,154.2,154.13,56.90341276]
[1642090973040,23.73544264,154.2,154.17,9.7266]
[1642090973742,23.47544264,154.2,154.17,9.7266]
[1642090973940,23.73544264,154.2,154.17,9.7266]
[1642090974146,23.73544264,154.2,154.18,6.06439993]
[1642090974367,23.47544264,154.2,154.18,15.79139993]
[1642090974742,0.004,154.26,154.2,92.0]
[1642090974951,1.82969713,154.3,154.21,7.82]
[1642090975147,2.594,154.38,154.22,64.88]
[1642090975346,78.6877,154.39,154.23,7.82]
[1642090975544,2.592,154.43,154.24,64.88]
[1642090975747,19.48344638,154.43,154.25,7.82]
[1642090975944,19.48344638,154.43,154.25,9.97999521]
[1642090976146,19.48344638,154.43,154.26,1.64999521]
[1642090976344,19.48344638,154.43,154.27,7.82]
[1642090976545,19.48344638,154.43,154.27,14.33]
[1642090976744,19.48244638,154.43,154.28,1.64999521]
[1642090976947,19.48244638,154.43,154.34,9.7163]
[1642090977342,19.48244638,154.43,154.34,9.9663]
[1642090978347,19.48244638,154.43,154.33,9.7177]
[1642090978546,19.48244638,154.43,154.29,7.82]
[1642090978547,25.48244638,154.43,154.29,7.82]
[1642090978847,25.48244638,154.43,154.29,8.07]
[1642090979046,25.74244638,154.43,154.29,8.07]
[1642090979251,64.88,154.42,154.29,7.82]
[1642090979447,64.88,154.42,154.26,23.952]
[1642090979448,2.591,154.41,154.25,7.82]
[1642090979646,10.411,154.41,154.25,7.82]
[1642090979847,16.921,154.41,154.25,7.82]
[1642090980048,0.31545983,154.39,154.21,7.82]
[1642090980247,2.592,154.38,154.21,7.82]
[1642090980446,13.53187716,154.37,154.22,67.472]
[1642090980650,13.53187716,154.37,154.23,17.5376]
[1642090980951,13.53187716,154.37,154.24,2.592]
[1642090981149,13.53187716,154.37,154.25,7.82]
[1642090981349,13.53187716,154.37,154.26,2.592]
[1642090981548,13.53187716,154.37,154.26,9.102]
[1642090981755,13.79187716,154.37,154.26,9.102]
[1642090981979,13.53187716,154.37,154.26,9.102]
[1642090982177,18.3102,154.41,154.3,9.7177]
[1642090982377,18.3102,154.41,154.3,12.3087]
[1642090982378,6.0,154.41,154.3,12.3087]
[1642090982577,6.0,154.42,154.3,18.8187]
[1642090983078,16.411,154.44,154.3,18.8187]
[1642090983378,18.82437091,154.44,154.31,1.64999521]
[1642090983582,16.23337091,154.44,154.37,9.714]
[1642090983978,16.23337091,154.44,154.37,9.964]
[1642090984678,16.48337091,154.44,154.37,9.964]
[1642090986183,30.719936,154.45,154.37,9.964]
[1642090986381,30.969936,154.45,154.37,10.224]
[1642090986780,30.719936,154.45,154.37,10.224]
[1642090986980,30.719936,154.45,154.37,16.224]
[1642090987382,2.59,154.49,154.39,87.0]
[1642090987582,2.59,154.49,154.44,9.7084]
[1642090987783,2.59,154.49,154.44,12.2974]
[1642090987982,6.217e-05,154.51,154.44,18.8074]
[1642090988181,6.217e-05,154.51,154.44,9.099]
[1642090988983,6.217e-05,154.51,154.48,9.7056]
[1642090989190,28.55641519,154.6,154.49,6.06439993]
[1642090989191,8.12071519,154.6,154.49,6.06439993]
[1642090989383,5.53171519,154.6,154.49,6.06439993]
[1642090989583,5.53171519,154.6,154.49,12.57439993]
[1642090989984,16.40715717,154.61,154.49,12.57439993]
[1642090990284,16.40715717,154.61,154.54,9.7033]
[1642090990484,2.587,154.64,154.54,10.2133]
[1642090990684,79.445,154.65,154.54,9.9533]
[1642090990984,2.587,154.64,154.54,9.9533]
[1642090991183,82.032,154.65,154.54,9.9533]
[1642090991388,16.25124756,154.64,154.54,10.2133]
[1642090991583,16.25124756,154.64,154.54,12.8003]
[1642090991783,16.25124756,154.64,154.54,18.5503]
[1642090991986,16.25124756,154.64,154.54,12.5503]
[1642090992385,16.25124756,154.64,154.54,12.2903]
[1642090992586,16.25124756,154.64,154.54,9.7033]
[1642090992987,22.25124756,154.64,154.54,15.9533]
[1642090993685,22.51124756,154.64,154.54,15.9533]
[1642090994286,22.51124756,154.64,154.54,16.2133]
[1642090994486,22.25124756,154.64,154.54,16.2133]
[1642090995086,22.50124756,154.64,154.54,16.2133]
[1642090995286,22.50124756,154.64,154.54,15.9533]
[1642090995887,22.76124756,154.64,154.55,2.587]
[1642090996087,22.51124756,154.64,154.58,9.7018]
[1642090996490,22.51124756,154.64,154.58,9.9518]
[1642090997088,22.76124756,154.64,154.58,9.9518]
[1642090998190,32.46354756,154.64,154.58,0.25]
[1642090998488,32.46354756,154.64,154.56,0.25]
[1642090999290,32.46354756,154.64,154.57,9.7025]
[1642090999489,32.46354756,154.64,154.57,9.9525]
[1642091000091,6.26,154.64,154.57,9.9525]
[1642091000293,6.0,154.64,154.57,9.9525]
[1642091000491,2.587,154.66,154.57,9.9525]
[1642091000695,0.25,154.66,154.57,9.9525]
[1642091001095,16.6251462,154.68,154.57,15.9525]
[1642091001297,16.6251462,154.68,154.58,2.586]
[1642091001494,9.6984,154.71,154.63,9.698]
[1642091001697,9.6984,154.71,154.63,9.948]
[1642091001896,10.406,154.72,154.63,9.948]
[1642091002097,9.6973,154.72,154.63,9.948]
[1642091003600,15.9473,154.72,154.63,9.698]
[1642091003799,15.9473,154.72,154.62,2.586]
[1642091003800,4.23599521,154.71,154.62,2.586]
[1642091003998,74.5819,154.67,154.51,79.5356]
[1642091004202,20.94434697,154.66,154.54,6.0]
[1642091004400,20.94434697,154.66,154.51,85.5356]
[1642091004601,21.19434697,154.66,154.51,85.5356]
[1642091004805,27.45434697,154.66,154.51,85.5356]
[1642091005301,9.7022,154.64,154.57,9.7019]
[1642091005502,10.2122,154.64,154.57,9.7019]
[1642091006805,0.51,154.64,154.57,9.7019]
[1642091007003,26.68734697,154.66,154.57,9.7019]
[1642091007202,32.68734697,154.66,154.52,2.587]
[1642091007402,2.587,154.65,154.52,2.587]
[1642091007604,9.097,154.65,154.51,82.1226]
[1642091007804,9.7019,154.64,154.51,82.1226]
[1642091008003,2.587,154.63,154.5,2.587]
[1642091008427,64.88,154.62,154.5,2.587]
[1642091008627,2.587,154.61,154.49,47.79]
[1642091008927,14.31641268,154.6,154.49,47.79]
[1642091009127,9.7054,154.59,154.51,9.7054]
[1642091009430,14.82641268,154.6,154.51,9.7054]
[1642091009629,0.26,154.59,154.51,9.7054]
[1642091009827,0.26,154.59,154.51,9.9554]
[1642091010226,9.705,154.59,154.49,9.7067]
[1642091010427,2.588,154.58,154.48,2.587]
[1642091010628,9.098,154.59,154.48,2.587]
[1642091010830,6.51,154.58,154.48,2.587]
[1642091011028,2.588,154.57,154.48,2.587]
[1642091011427,9.098,154.57,154.48,2.587]
[1642091011828,9.7076,154.55,154.48,12.2946]
[1642091012129,18.59734768,154.54,154.48,9.7076]
[1642091012527,0.51,154.54,154.48,9.7076]
[1642091012730,0.26,154.54,154.48,9.9576]
[1642091013127,18.8036,154.59,154.48,9.9576]
[1642091013327,16.2156,154.59,154.51,9.7055]
[1642091013529,30.23650088,154.59,154.51,9.9555]
[1642091013730,24.23650088,154.59,154.51,9.9555]
[1642091014731,0.25,154.59,154.51,9.9555]
[1642091014926,0.26,154.59,154.51,9.9555]
[1642091015129,13.82,154.6,154.51,9.9555]
[1642091015329,7.82,154.6,154.51,9.9555]
[1642091016235,8.07,154.6,154.51,9.9555]
[1642091016738,8.33,154.6,154.51,9.9555]
[1642091017835,8.07,154.6,154.51,9.9555]
[1642091018039,3.6505946,154.62,154.51,9.9555]
[1642091018242,3.6505946,154.62,154.52,2.587]
[1642091018440,3.6505946,154.62,154.56,9.7024]
[1642091019042,7.34136954,154.64,154.56,9.7024]
[1642091019240,64.88,154.63,154.56,9.7024]
[1642091019444,67.467,154.63,154.54,9.7035]
[1642091019650,66.967,154.63,154.54,9.7035]
[1642091020046,7.34136954,154.62,154.54,9.7035]
[1642091020246,12.2912,154.61,154.54,9.7035]
[1642091020647,12.8012,154.61,154.54,9.7035]
[1642091020948,68.07077494,154.6,154.53,9.7047]
[1642091021249,68.07077494,154.6,154.48,44.696]
[1642091021250,15.7964536,154.59,154.48,44.696]
[1642091021446,15.7964536,154.59,154.48,42.109]
[1642091021648,16.3064536,154.59,154.49,2.588]
[1642091022048,26.0113536,154.59,154.49,2.588]
[1642091023147,26.0113536,154.59,154.49,12.2948]
[1642091023349,28.5993536,154.59,154.49,9.7068]
[1642091023547,34.5993536,154.59,154.49,9.7068]
[1642091023957,38.2499482,154.59,154.49,9.7068]
[1642091024551,38.2499482,154.59,154.49,9.9568]
[1642091024758,64.88,154.58,154.49,9.9568]
[1642091024958,9.7064,154.57,154.49,9.9568]
[1642091025374,9.9564,154.57,154.49,9.7068]
[1642091025555,9.9564,154.57,154.49,9.9568]
[1642091025957,15.9564,154.57,154.49,9.7068]
[1642091026157,9.9564,154.57,154.49,9.7068]
[1642091026756,10.2164,154.57,154.49,9.7068]
[1642091026955,9.9564,154.57,154.49,9.7068]
[1642091027558,15.9564,154.57,154.48,19.466]
[1642091027755,9.9564,154.57,154.48,19.466]
[1642091029562,15.9564,154.57,154.48,19.466]
[1642091030165,16.2164,154.57,154.48,19.466]
[1642091030967,10.2164,154.57,154.48,19.466]
[1642091031166,16.2164,154.57,154.48,19.466]
[1642091031366,15.9664,154.57,154.48,19.466]
[1642091031564,15.9664,154.57,154.48,19.716]
[1642091032366,15.9664,154.57,154.48,19.466]
[1642091032768,16.2164,154.57,154.48,19.466]
[1642091032965,16.2164,154.57,154.48,19.716]
[1642091033166,10.2164,154.57,154.48,19.716]
[1642091033368,16.2164,154.57,154.48,19.716]
[1642091034490,10.2164,154.57,154.48,19.716]
[1642091034892,10.2164,154.57,154.48,19.466]
[1642091035692,9.7074,154.55,154.48,19.466]
[1642091035991,18.0374,154.55,154.48,9.7585]
[1642091037401,18.0374,154.55,154.47,9.7081]
[1642091037595,18.0374,154.55,154.46,2.588]
[1642091037796,18.0374,154.55,154.46,2.838]
[1642091038002,24.0374,154.55,154.46,0.25]
[1642091038597,8.08,154.55,154.46,9.9586]
[1642091039009,11.4705946,154.55,154.46,10.2186]
[1642091039197,11.4705946,154.55,154.46,9.9586]
[1642091040202,8.08,154.55,154.46,9.9586]
[1642091041401,7.08,154.55,154.46,9.9586]
[1642091042103,0.26,154.55,154.46,9.9586]
[1642091042303,3.6505946,154.57,154.46,9.9586]
[1642091042502,3.6505946,154.57,154.47,2.588]
[1642091042704,3.6505946,154.57,154.51,9.7049]
[1642091043114,1.0205946,154.57,154.52,10.408]
[1642091043303,5.53171519,154.6,154.52,10.408]
[1642091043503,3.70764985,154.58,154.53,1.64999521]
[1642091043704,5.53171519,154.61,154.54,12.2885]
[1642091043904,5.53171519,154.61,154.54,20.1085]
[1642091044105,5.53171519,154.61,154.54,26.6185]
[1642091044708,8.11871519,154.69,154.54,26.6185]
[1642091044906,8.11871519,154.69,154.54,26.3585]
[1642091045107,14.11871519,154.69,154.54,26.3585]
[1642091045306,9.6993,154.68,154.54,26.3585]
[1642091045711,18.84726422,154.67,154.54,26.3585]
[1642091046406,18.84726422,154.67,154.54,26.6185]
[1642091046806,19.10726422,154.67,154.54,26.6185]
[1642091047008,0.26,154.67,154.54,26.6185]
[1642091047208,92.0,154.65,154.44,9.5579]
[1642091047407,7.82,154.64,154.45,2.588]
[1642091047607,2.588,154.63,154.44,9.5579]
[1642091047811,105.52,154.62,154.44,9.5579]
[1642091048007,18.84367747,154.61,154.41,18.52432474]
[1642091048208,64.88,154.59,154.38,2.588]
[1642091048410,10.409,154.58,154.38,2.588]
[1642091048607,97.7,154.57,154.38,2.588]
[1642091048807,108.109,154.56,154.36,4.83170162]
[1642091049008,114.619,154.56,154.36,4.83170162]
[1642091049209,97.7,154.53,154.36,4.83170162]
[1642091049408,9.7163,154.44,154.36,4.83170162]
[1642091049609,10.41,154.43,154.37,13.7855441]
[1642091049811,0.26,154.44,154.37,13.7855441]
[1642091050010,8.08,154.46,154.37,13.7855441]
[1642091050413,7.82,154.46,154.37,14.0455441]
[1642091051212,7.82,154.46,154.37,14.2955441]
[1642091051611,13.82,154.46,154.37,13.7855441]
[1642091051812,14.08,154.46,154.37,13.7855441]
[1642091052013,2.59,154.45,154.37,13.7855441]
[1642091052212,19.63401778,154.45,154.33,2.59]
[1642091052415,7.82,154.44,154.32,23.0281]
[1642091052615,9.716,154.42,154.29,2.591]
[1642091052814,17.536,154.42,154.29,2.591]
[1642091053019,24.046,154.42,154.29,2.591]
[1642091053249,21.68611964,154.41,154.29,2.591]
[1642091053452,10.411,154.4,154.28,74.8973]
[1642091053651,64.88,154.39,154.27,2.591]
[1642091053850,9.7203,154.35,154.26,2.591]
[1642091054050,15.9803,154.35,154.24,2.592]
[1642091054249,7.82,154.34,154.24,2.592]
[1642091054451,16.922,154.34,154.24,2.592]
[1642091054652,23.24514529,154.33,154.24,2.592]
[1642091054851,9.7226,154.32,154.24,2.592]
[1642091055053,16.2326,154.32,154.24,2.592]
[1642091055854,0.51,154.32,154.24,2.592]
[1642091056066,20.1333,154.34,154.24,2.842]
[1642091056067,2.592,154.34,154.24,2.842]
[1642091056258,7.82,154.36,154.24,2.842]
[1642091056259,7.82,154.36,154.24,8.842]
[1642091056654,7.82,154.42,154.24,16.662]
[1642091057054,7.82,154.42,154.24,16.922]
[1642091057356,7.82,154.42,154.24,26.6422]
[1642091057655,17.34911715,154.41,154.24,26.6422]
[1642091057853,10.411,154.4,154.24,26.6422]
[1642091058054,7.82,154.4,154.25,64.88]
[1642091058259,7.82,154.4,154.32,9.713]
[1642091058563,7.82,154.4,154.33,2.591]
[1642091058762,7.82,154.4,154.33,23.65236159]
[1642091058959,7.82,154.4,154.33,23.90236159]
[1642091059259,7.82,154.4,154.34,2.591]
[1642091059459,7.82,154.4,154.34,0.25]
[1642091059859,7.82,154.45,154.34,0.25]
[1642091060159,13.82,154.45,154.34,9.9643]
[1642091060760,2.592,154.47,154.34,10.2243]
[1642091060962,2.59,154.5,154.35,2.59]
[1642091061167,10.41,154.51,154.35,2.59]
[1642091061363,9.7107,154.5,154.38,9.7115]
[1642091061562,9.7107,154.5,154.38,10.2215]
[1642091061762,9.7107,154.5,154.39,23.13520943]
[1642091061961,9.9707,154.5,154.39,23.38520943]
[1642091062563,16.2207,154.5,154.39,23.38520943]
[1642091062965,9.7107,154.5,154.39,23.38520943]
[1642091063565,9.7107,154.5,154.4,2.589]
[1642091063767,2.589,154.52,154.41,9.71]
[1642091063965,80.5756,154.57,154.42,2.589]
[1642091063966,2.589,154.55,154.42,2.589]
[1642091064174,2.589,154.58,154.43,32.3551]
[1642091064396,2.589,154.58,154.44,2.588]
[1642091064598,2.589,154.58,154.44,3.098]
[1642091064797,9.7064,154.57,154.47,9.7066]
[1642091064998,15.9664,154.57,154.48,21.8958408]
[1642091065200,2.588,154.6,154.48,21.8958408]
[1642091065400,5.53171519,154.64,154.49,72.7]
[1642091065600,5.53171519,154.64,154.49,74.85999521]
[1642091065800,131.287,154.69,154.5,16.77618018]
[1642091066001,128.2,154.69,154.53,9.7036]
[1642091066302,13.35171519,154.7,154.6,32.3243]
[1642091066303,23.16278502,154.7,154.6,32.3243]
[1642091066499,23.16278502,154.7,154.61,18.11106147]
[1642091066701,17.63106983,154.7,154.61,20.69706147]
[1642091066899,17.63106983,154.7,154.61,24.62106147]
[1642091067099,17.63106983,154.7,154.61,9.9473]
[1642091067499,2.586,154.69,154.57,32.3315]
[1642091067698,2.586,154.69,154.58,0.25]
[1642091067899,8.836,154.69,154.57,32.3315]
[1642091068101,2.586,154.69,154.59,9.7004]
[1642091068303,2.586,154.73,154.6,2.586]
[1642091068499,2.586,154.76,154.65,32.3125]
[1642091068706,7.82,154.8,154.65,39.5135]
[1642091068707,2.585,154.77,154.65,39.5135]
[1642091068902,2.585,154.79,154.65,39.7735]
[1642091069100,22.73294917,154.8,154.66,20.42521138]
[1642091069300,2.585,154.79,154.66,28.24521138]
[1642091069500,8.585,154.79,154.66,8.33]
[1642091069701,18.2786,154.79,154.66,9.6961]
[1642091069905,1.64999521,154.78,154.65,2.585]
[1642091070104,10.405,154.77,154.65,2.585]
[1642091070301,10.405,154.77,154.58,7.82]
[1642091070500,23.51562512,154.76,154.59,21.1618106]
[1642091070703,10.406,154.75,154.59,21.1618106]
[1642091070902,12.05599521,154.75,154.59,21.1618106]
[1642091071200,9.6973,154.73,154.61,9.6991]
[1642091071404,2.586,154.72,154.62,22.80681549]
[1642091071602,33.00740161,154.73,154.62,22.80681549]
[1642091071802,2.586,154.72,154.62,22.80681549]
[1642091072002,2.586,154.72,154.62,23.31681549]
[1642091072402,2.586,154.72,154.62,31.13681549]
[1642091072602,17.31010161,154.73,154.62,40.83491549]
[1642091072901,17.31010161,154.73,154.62,43.42091549]
[1642091073106,17.31010161,154.73,154.62,20.1041]
[1642091073402,2.586,154.72,154.62,7.82]
[1642091073602,8.586,154.72,154.62,7.82]
[1642091073807,8.836,154.72,154.62,7.82]
[1642091074005,9.096,154.72,154.62,7.82]
[1642091074603,2.846,154.72,154.62,7.82]
[1642091074802,2.846,154.72,154.63,19.21190667]
[1642091075006,17.31010161,154.73,154.6,7.82]
[1642091075206,2.586,154.72,154.6,7.82]
[1642091075413,2.586,154.72,154.56,7.82]
[1642091075710,9.7002,154.68,154.56,7.82]
[1642091075908,2.586,154.67,154.54,1.64999521]
[1642091076110,22.01810638,154.66,154.5,19.6621779]
[1642091076312,2.587,154.65,154.5,17.0751779]
[1642091076509,9.097,154.65,154.5,17.0751779]
[1642091077408,9.7058,154.61,154.5,26.7814779]
[1642091077607,10.2158,154.61,154.5,12.2943]
[1642091077808,10.2158,154.61,154.5,2.588]
[1642091078007,16.2158,154.61,154.5,2.588]
[1642091078207,2.588,154.62,154.5,2.588]
[1642091078409,24.60510638,154.66,154.51,1.64999521]
[1642091078708,28.01810638,154.66,154.58,9.7006]
[1642091079309,28.01810638,154.66,154.58,9.9506]
[1642091079710,28.01810638,154.66,154.58,9.7006]
[1642091079912,28.26810638,154.66,154.58,9.7006]
[1642091080613,28.52810638,154.66,154.58,9.7006]
[1642091080813,64.88,154.65,154.56,12.2882]
[1642091081013,71.39,154.65,154.56,12.5382]
[1642091081615,71.39,154.65,154.56,2.586]
[1642091081815,81.797,154.65,154.56,2.586]
[1642091082715,81.797,154.65,154.49,21.20995993]
[1642091082924,81.797,154.65,154.47,7.82]
[1642091082925,91.4997,154.65,154.52,20.44181561]
[1642091083116,91.4997,154.65,154.48,2.587]
[1642091084318,91.4997,154.65,154.45,2.587]
[1642091084521,99.90918297,154.65,154.44,2.588]
[1642091084724,106.53922196,154.65,154.43,25.8325]
[1642091084922,192.87034276,154.65,154.43,25.8325]
[1642091085123,192.87034276,154.65,154.44,22.66770176]
[1642091086126,192.87034276,154.65,154.44,32.37730176]
[1642091086326,183.95085979,154.65,154.45,4.23799521]
[1642091086527,167.4534,154.65,154.45,18.30799521]
[1642091086829,10.407,154.65,154.46,1.64999521]
[1642091087027,22.01810638,154.66,154.47,35.35397074]
[1642091087228,22.01810638,154.66,154.47,53.06826682]
[1642091087427,22.01810638,154.66,154.55,9.7028]
[1642091087632,22.01810638,154.66,154.56,24.45546152]
[1642091088029,28.01810638,154.66,154.56,24.70546152]
[1642091088232,28.01810638,154.66,154.56,22.11846152]
[1642091088430,22.27810638,154.66,154.56,22.11846152]
[1642091088629,22.52810638,154.66,154.56,22.11846152]
[1642091089028,32.22920638,154.66,154.59,9.7004]
[1642091089230,31.71920638,154.66,154.59,9.7004]
[1642091089432,2.587,154.68,154.59,9.7004]
[1642091089632,0.25,154.66,154.59,9.7004]
[1642091089931,0.25,154.68,154.59,9.7004]
[1642091090132,6.25,154.68,154.59,9.7004]
[1642091090330,6.0,154.68,154.6,16.93004755]
[1642091090532,6.0,154.69,154.6,17.18004755]
[1642091090753,9.7004,154.68,154.61,9.6993]
[1642091090953,15.7004,154.68,154.61,9.6993]
[1642091091151,6.0,154.68,154.61,9.6993]
[1642091091353,6.0,154.68,154.61,9.9493]
[1642091091552,78.7,154.72,154.61,9.9493]
[1642091091753,2.586,154.71,154.61,9.9493]
[1642091091956,9.6991,154.7,154.61,2.586]
[1642091092154,2.586,154.69,154.56,2.586]
[1642091092553,9.096,154.69,154.56,2.836]
[1642091092753,6.51,154.69,154.56,2.836]
[1642091092954,9.7017,154.65,154.56,20.45909188]
[1642091093353,28.32259357,154.65,154.56,20.45909188]
[1642091093756,9.9617,154.65,154.56,20.45909188]
[1642091093954,10.2117,154.65,154.56,20.45909188]
[1642091094157,10.2117,154.65,154.56,17.87309188]
[1642091094755,19.62402264,154.64,154.56,17.87309188]
[1642091094956,9.7034,154.63,154.56,17.87309188]
[1642091095355,10.2134,154.63,154.56,17.87309188]
[1642091096161,10.2134,154.63,154.55,9.703]
[1642091096359,9.9534,154.63,154.55,9.703]
[1642091096561,64.88,154.62,154.53,2.587]
[1642091096860,9.706,154.58,154.53,2.587]
[1642091097163,22.09491033,154.57,154.46,1.61465795]
[1642091097359,32.3656,154.56,154.46,1.61465795]
[1642091097562,32.8756,154.56,154.46,1.61465795]